lending/lending_fUSD_20250102
["ID","MTS","AMOUNT","RATE_DAILY","PERIOD"]
[347414939,1735776636762,-500.0,0.00010958,2]
[347414940,1735776636771,-500.0,0.00010958,2]
[347414941,1735776636781,-2758.22,0.00010958,2]
[347414942,1735776636790,-500.0,0.00010958,2]
[347414943,1735776636799,-879.22,0.00010958,2]
[347414944,1735776636809,-2522.41,0.00010958,2]
[347414945,1735776636818,-500.0,0.00010958,2]
[347414946,1735776636828,-500.0,0.00010958,2]
[347414947,1735776636837,-852.94,0.00010958,2]
[347414948,1735776636847,-1377.14,0.00010958,2]
[347414949,1735776636857,-500.0,0.00010958,2]
[347414950,1735776636869,-500.0,0.00010958,2]
[347414951,1735776636884,-1230.9,0.00010958,2]
[347414952,1735776636893,-820.61,0.00010958,2]
[347414953,1735776636904,-718.38,0.00010958,2]
[347414954,1735776636914,-1141.25,0.00010958,2]
[347414955,1735776636923,-500.0,0.00010958,2]
[347414956,1735776636935,-3073.81,0.00010958,2]
[347414957,1735776636945,-500.0,0.00010958,2]
[347414958,1735776636954,-500.0,0.00010958,2]
[347414959,1735776636964,-778.97,0.00010958,2]
[347414960,1735776636973,-967.1,0.00010958,2]
[347414961,1735776636983,-500.0,0.00010958,2]
[347414962,1735776636993,-536.56,0.00010958,2]
[347414963,1735776637002,-4333.39,0.00010958,2]
[347414964,1735776637012,-473.96650433,0.00010958,2]
[347414965,1735776637041,-3186.67819549,0.00010958,2]
[347414966,1735776637080,-1398.56831943,0.00010958,2]
[347414967,1735776637092,-1049.75,0.00010958,2]
[347414968,1735776637103,-2245.68698075,0.00010958,2]
[347414969,1735776637112,-254.27558777,0.00010958,2]
[347414970,1735776637125,-1112.14,0.00010958,2]
[347414971,1735776637136,-1089.69,0.00010958,2]
[347414972,1735776637149,-409.56441223,0.00010958,2]
[347414973,1735776637158,-500.0,0.00010958,2]
[347414974,1735776637168,-585.53,0.00010958,2]
[347414975,1735776637177,-500.0,0.00010958,2]
[347414976,1735776637187,-1114.04,0.00010958,2]
[347414977,1735776637197,-500.0,0.00010958,2]
[347414978,1735776637207,-1580.43,0.00010958,2]
[347414979,1735776637217,-239.8093549,0.00010958,2]
[347414980,1735776637233,-260.1906451,0.00010958,2]
[347414981,1735776637242,-486.07101653,0.00010958,2]
[347414982,1735776637253,-495.55898347,0.00010958,2]
[347414983,1735776637262,-38.66729103,0.00010958,2]
[347414984,1735776637274,-335.27999352,0.00010958,2]
[347414985,1735776637285,-437.91271545,0.00010958,2]
[347414986,1735776637295,-500.0,0.00010958,2]
[347414987,1735776637304,-1344.59,0.00010958,2]
[347414988,1735776637314,-500.0,0.00010958,2]
[347414989,1735776637323,-500.0,0.00010958,2]
[347414990,1735776637333,-730.75,0.00010958,2]
[347414991,1735776637342,-2754.25,0.00010958,2]
[347414992,1735776637351,-500.0,0.00010958,2]
[347414993,1735776637360,-3309.03,0.00010958,2]
[347414994,1735776637370,-500.0,0.00010958,2]
[347414995,1735776637382,-1351.29,0.00010958,2]
[347414996,1735776637391,-2019.94,0.00010958,2]
[347414997,1735776637401,-1631.89,0.00010958,2]
[347414998,1735776637410,-2306.45,0.00010958,2]
[347414999,1735776637420,-904.25,0.00010958,2]
[347415000,1735776637430,-802.35,0.00010958,2]
[347415001,1735776637444,-740.72,0.00010958,2]
[347415002,1735776637454,-500.0,0.00010958,2]
[347415003,1735776637464,-500.0,0.00010958,2]
[347415004,1735776637474,-1651.9,0.00010958,2]
[347415005,1735776637484,-8918.75,0.00010958,2]
[347415006,1735776637494,-1409.09,0.00010958,2]
[347415007,1735776637503,-943.05,0.00010958,2]
[347415008,1735776637513,-500.0,0.00010958,2]
[347415009,1735776637522,-500.0,0.00010958,2]
[347415010,1735776637531,-500.0,0.00010958,2]
[347415011,1735776637541,-1208.2,0.00010958,2]
[347415012,1735776637551,-723.87,0.00010958,2]
[347415013,1735776637561,-828.06,0.00010958,2]
[347415015,1735776637571,-1577.2,0.00010958,2]
[347415017,1735776637581,-1177.36,0.00010958,2]
[347415018,1735776637591,-833.39,0.00010958,2]
[347415019,1735776637601,-959.65,0.00010958,2]
[347415020,1735776637611,-1276.4,0.00010958,2]
[347415021,1735776637620,-500.0,0.00010958,2]
[347415022,1735776637631,-1098.4,0.00010958,2]
[347415023,1735776637641,-8995.61,0.00010958,2]
[347415025,1735776637651,-954.62,0.00010958,2]
[347415027,1735776637660,-500.0,0.00010958,2]
[347415028,1735776637670,-502.93,0.00010958,2]
[347415029,1735776637680,-500.0,0.00010958,2]
[347415030,1735776637689,-500.0,0.00010958,2]
[347415031,1735776637699,-500.0,0.00010958,2]
[347415032,1735776637709,-1560.67,0.00010958,2]
[347415033,1735776637718,-746.21,0.00010958,2]
[347415034,1735776637728,-682.08,0.00010958,2]
[347415035,1735776637738,-525.32,0.00010958,2]
[347415036,1735776637748,-547.78,0.00010958,2]
[347415038,1735776637758,-500.0,0.00010958,2]
[347415040,1735776637767,-500.0,0.00010958,2]
[347415042,1735776637777,-648.74,0.00010958,2]
[347415043,1735776637787,-769.68,0.00010958,2]
[347415044,1735776637796,-1541.1,0.00010958,2]
[347415045,1735776637805,-500.0,0.00010958,2]
[347415046,1735776637814,-500.0,0.00010958,2]
[347415047,1735776637823,-2842.31,0.00010958,2]
[347415048,1735776637832,-767.48,0.00010958,2]
[347415049,1735776637841,-500.0,0.00010958,2]
[347415050,1735776637850,-4557.35,0.00010958,2]
[347415051,1735776637860,-1659.29,0.00010958,2]
[347415052,1735776637871,-1589.66,0.00010958,2]
[347415053,1735776637883,-517.17581537,0.00010958,2]
[347415054,1735776637892,-912.67,0.00010958,2]
[347415055,1735776637903,-1764.23,0.00010958,2]
[347415056,1735776637912,-500.0,0.00010958,2]
[347415057,1735776637921,-500.0,0.00010958,2]
[347415058,1735776637930,-967.55,0.00010958,2]
[347415059,1735776637940,-500.0,0.00010958,2]
[347415060,1735776637950,-1943.87,0.00010958,2]
[347415061,1735776637959,-1353.28,0.00010958,2]
[347415062,1735776637968,-8882.45,0.00010958,2]
[347415063,1735776637977,-500.0,0.00010958,2]
[347415064,1735776637987,-500.0,0.00010958,2]
[347415065,1735776637996,-1211.31,0.00010958,2]
[347415066,1735776638006,-3682.87,0.00010958,2]
[347415067,1735776638015,-746.2,0.00010958,2]
[347415068,1735776638025,-1188.88,0.00010958,2]
[347415069,1735776638034,-1877.71,0.00010958,2]
[347415070,1735776638044,-3636.95,0.00010958,2]
[347415071,1735776638053,-1843.7,0.00010958,2]
[347415072,1735776638064,-3054.6,0.00010958,2]
[347415074,1735776638074,-500.0,0.00010958,2]
[347415076,1735776638083,-1627.39,0.00010958,2]
[347415078,1735776638093,-1243.09,0.00010958,2]
[347415080,1735776638102,-500.0,0.00010958,2]
[347415083,1735776638111,-1965.88,0.00010958,2]
[347415085,1735776638121,-500.0,0.00010958,2]
[347415087,1735776638132,-2553.25,0.00010958,2]
[347415089,1735776638142,-500.0,0.00010958,2]
[347415091,1735776638151,-8826.31,0.00010958,2]
[347415093,1735776638161,-3481.93,0.00010958,2]
[347415095,1735776638171,-500.0,0.00010958,2]
[347415097,1735776638181,-1611.56,0.00010958,2]
[347415099,1735776638191,-500.0,0.00010958,2]
[347415101,1735776638200,-1048.5,0.00010958,2]
[347415128,1735776638210,-844.53,0.00010958,2]
[347415131,1735776638464,-500.0,0.00010958,2]
[347415133,1735776638475,-1275.02,0.00010958,2]
[347415135,1735776638485,-786.36,0.00010958,2]
[347415137,1735776638495,-500.0,0.00010958,2]
[347415139,1735776638505,-2958.99,0.00010958,2]
[347415141,1735776638514,-1470.68,0.00010958,2]
[347415143,1735776638525,-544.0,0.00010958,2]
[347415145,1735776638536,-287.52295347,0.00010958,2]
[347415147,1735776638545,-1741.42,0.00010958,2]
[347415149,1735776638554,-880.74,0.00010958,2]
[347415151,1735776638564,-502.37,0.00010958,2]
[347415153,1735776638573,-2639.54,0.00010958,2]
[347415156,1735776638583,-6298.74,0.00010958,2]
[347415158,1735776638593,-546.99990848,0.00010958,2]
[347415159,1735776638602,-3242.88,0.00010958,2]
[347415162,1735776638611,-1570.32,0.00010958,2]
[347415164,1735776638620,-1047.14,0.00010958,2]
[347415166,1735776638633,-722.79,0.00010958,2]
[347415167,1735776638642,-500.0,0.00010958,2]
[347415169,1735776638651,-1099.45,0.00010958,2]
[347415171,1735776638661,-1167.58,0.00010958,2]
[347415173,1735776638672,-713.95,0.00010958,2]
[347415175,1735776638681,-500.0,0.00010958,2]
[347415178,1735776638691,-5316.14,0.00010958,2]
[347415179,1735776638700,-679.24,0.00010958,2]
[347415181,1735776638709,-500.0,0.00010958,2]
[347415184,1735776638719,-765.02,0.00010958,2]
[347415186,1735776638729,-2785.51,0.00010958,2]
[347415187,1735776638738,-1183.3,0.00010958,2]
[347415189,1735776638747,-3156.24,0.00010958,2]
[347415192,1735776638757,-9037.81,0.00010958,2]
[347415194,1735776638767,-1094.42,0.00010958,2]
[347415196,1735776638776,-500.0,0.00010958,2]
[347415198,1735776638785,-1085.42,0.00010958,2]
[347415199,1735776638795,-574.2,0.00010958,2]
[347415201,1735776638804,-858.18,0.00010958,2]
[347415203,1735776638813,-524.76,0.00010958,2]
[347415206,1735776638822,-1261.5,0.00010958,2]
[347415208,1735776638832,-6876.91,0.00010958,2]
[347415210,1735776638842,-2570.01,0.00010958,2]
[347415212,1735776638851,-500.0,0.00010958,2]
[347415214,1735776638865,-500.0,0.00010958,2]
[347415216,1735776638873,-4041.67,0.00010958,2]
[347415218,1735776638884,-500.0,0.00010958,2]
[347415220,1735776638894,-1134.91,0.00010958,2]
[347415222,1735776638904,-500.0,0.00010958,2]
[347415224,1735776638913,-1063.48,0.00010958,2]
[347415226,1735776638922,-668.19,0.00010958,2]
[347415228,1735776638931,-2847.58,0.00010958,2]
[347415229,1735776638942,-1176.25,0.00010958,2]
[347415231,1735776638951,-500.0,0.00010958,2]
[347415233,1735776638961,-6274.42,0.00010958,2]
[347415235,1735776638971,-500.0,0.00010958,2]
[347415237,1735776638980,-532.83,0.00010958,2]
[347415239,1735776638989,-1164.22,0.00010958,2]
[347415241,1735776638999,-3341.88,0.00010958,2]
[347415244,1735776639008,-500.0,0.00010958,2]
[347415246,1735776639017,-1096.55,0.00010958,2]
[347415248,1735776639027,-1275.3,0.00010958,2]
[347415250,1735776639036,-500.0,0.00010958,2]
[347415251,1735776639045,-529.29,0.00010958,2]
[347415253,1735776639055,-1402.89,0.00010958,2]
[347415255,1735776639064,-500.0,0.00010958,2]
[347415257,1735776639074,-4598.46,0.00010958,2]
[347415259,1735776639083,-1063.43,0.00010958,2]
[347415261,1735776639093,-1472.53,0.00010958,2]
[347415263,1735776639102,-510.0,0.00010958,2]
[347415265,1735776639111,-829.19,0.00010958,2]
[347415267,1735776639120,-500.0,0.00010958,2]
[347415269,1735776639131,-2278.38,0.00010958,2]
[347415271,1735776639140,-2180.31,0.00010958,2]
[347415273,1735776639149,-695.6,0.00010958,2]
[347415275,1735776639159,-984.37,0.00010958,2]
[347415277,1735776639169,-1406.55,0.00010958,2]
[347415279,1735776639178,-2077.68,0.00010958,2]
[347415280,1735776639187,-1217.5,0.00010958,2]
[347415281,1735776639196,-500.0,0.00010958,2]
[347415282,1735776639206,-1622.86,0.00010958,2]
[347415283,1735776639215,-500.0,0.00010958,2]
[347415284,1735776639225,-2260.88,0.00010958,2]
[347415285,1735776639234,-577.82,0.00010958,2]
[347415286,1735776639244,-518.64,0.00010958,2]
[347415287,1735776639253,-1002.98,0.00010958,2]
[347415288,1735776639263,-506.75,0.00010958,2]
[347415289,1735776639272,-500.0,0.00010958,2]
[347415290,1735776639281,-498.31,0.00010958,2]
[347415291,1735776639291,-150.0,0.00010959,2]
[347415292,1735776639300,-142855.26371926,0.00010967,2]
[347415293,1735776639310,-200.0,0.00010968,2]
[347415294,1735776639320,-66515.51788161,0.00010968,2]
[347415295,1735776639330,-597.24032825,0.0001097,2]
[347415296,1735776639339,-200.0,0.00010971,2]
[347415297,1735776639349,-200.0,0.00010971,2]
[347415298,1735776639358,-599.50954128,0.00010971,2]
[347415299,1735776639367,-500.0,0.00010973,2]
[347415300,1735776639377,-500.0,0.00010973,2]
[347415301,1735776639386,-597.24032825,0.00010973,2]
[347415302,1735776639396,-200.0,0.00010973,2]
[347415303,1735776639406,-87939.7921158,0.00010974,2]
[347415304,1735776639416,-599.50954128,0.00010975,2]
[347415305,1735776639425,-58652.68137547,0.00010975,2]
[347415315,1735776639914,-7406.60228443,0.00010975,2]
[347415320,1735776640202,1264.64,9.548e-05,2]
[347415439,1735776641338,-3264.13760739,0.00010975,2]
[347415444,1735776641367,-392.94026559,0.00010975,2]
[347415446,1735776641384,-3362.7450107,0.00010975,2]
[347415448,1735776641395,-1749.22448191,0.00010975,2]
[347415451,1735776641407,-1804.33875029,0.00010975,2]
[347415453,1735776641418,-1477.47,0.00010975,2]
[347415455,1735776641428,-1937.25,0.00010975,2]
[347415459,1735776641456,-976.2,0.00010958,2]
[347415461,1735776641467,-480.84,0.00010958,2]
[347415463,1735776641476,-20825.67287799,0.00010975,2]
[347415489,1735776641741,-901.49,0.00010958,2]
[347415490,1735776641750,-156.02905768,0.00010975,2]
[347415491,1735776641762,-2873.15111737,0.00010975,2]
[347415492,1735776641782,-9096.64373114,0.00010975,2]
[347415493,1735776641793,-8947.21879473,0.00010975,2]
[347415494,1735776641804,-8943.78386462,0.00010975,2]
[347415495,1735776641815,-9077.54866152,0.00010975,2]
[347415496,1735776641826,-2887.82583843,0.00010975,2]
[347415497,1735776641836,-599.50954128,0.00010975,2]
[347415498,1735776641846,-599.50954128,0.00010976,2]
[347415499,1735776641855,-4856.9953139,0.00010978,2]
[347415500,1735776641988,-797.66149559,0.00010978,2]
[347415511,1735776642886,-1281.77860811,0.00010978,2]
[347415512,1735776642934,-678.67046185,0.00010978,2]
[347415513,1735776642945,-74164.38696688,0.00010978,2]
[347415514,1735776642990,-1817.67063,0.00010978,2]
[347415515,1735776643001,-1765.7713395,0.00010978,2]
[347415516,1735776643045,-497.5200002,0.00010978,2]
[347415778,1735776645777,-302.0,0.00010858,2]
[347415780,1735776645790,-1804.08455488,0.00010858,2]
[347415785,1735776645831,-346.185,0.00010858,2]
[347415807,1735776646042,-2547.73044512,0.00010858,2]
[347415809,1735776646052,-2945.74,0.00010958,2]
[347415811,1735776646061,-2029.37,0.00010958,2]
[347415813,1735776646070,-500.0,0.00010958,2]
[347415815,1735776646079,-4946.59,0.00010958,2]
[347415817,1735776646088,-500.0,0.00010973,2]
[347415819,1735776646098,-56994.80890323,0.00010978,2]
[347415821,1735776646107,-4706.34023734,0.00010979,2]
[347415823,1735776646116,-599.50954128,0.0001098,2]
[347415825,1735776646126,-599.50954128,0.00010983,2]
[347415827,1735776646136,-142855.26371926,0.00010983,2]
[347415829,1735776646146,-87939.7921158,0.00010984,2]
[347415831,1735776646155,-41986.13891082,0.00010984,2]
[347415833,1735776646166,-1167.41625,0.00010984,2]
[347415835,1735776646178,-644.1592,0.00010984,2]
[347416008,1735776678893,960.49,8.326e-05,2]
[347416009,1735776687146,-24795.17166317,0.00011037,7]
[347416011,1735776867400,-10555.0,0.00012463,7]
[347416012,1735776867424,-14649.82833683,0.00012499,7]
[347416014,1735776960157,250.0,9.595e-05,2]
[347416015,1735777061667,441.54,0.00023,120]
[347416016,1735777074719,25026.188465,9.591e-05,2]
[347416017,1735777130482,1324.63,0.00023,120]
[347416018,1735777234467,1500.0,9.605e-05,2]
[347416020,1735777343897,166.36,9.592e-05,2]
[347416021,1735777415985,1517.43,9.528e-05,2]
[347416022,1735777514616,23900.0,9.527e-05,2]
[347416024,1735777568590,1062.9,9.591e-05,2]
[347416030,1735777709659,250.0,9.546e-05,2]
[347416033,1735777718773,1087.77,8.219e-05,2]
[347416039,1735777793541,2000.0,9.453e-05,2]
[347416058,1735777831962,-151.82,9.624e-05,2]
[347416059,1735777831972,-1000.0,9.635e-05,2]
[347416060,1735777831981,-451.89,9.64e-05,2]
[347416061,1735777831990,-180.87000001,9.652e-05,2]
[347416062,1735777832019,-1751.81999999,9.652e-05,2]
[347416063,1735777832029,-250.0,9.773e-05,2]
[347416064,1735777832038,-3687.84908291,9.823e-05,2]
[347416065,1735777832049,-253.6045437,9.823e-05,2]
[347416066,1735777832061,-12330.04637339,9.823e-05,2]
[347416067,1735777832071,-167.07,9.834e-05,2]
[347416068,1735777832080,-150.0,9.888e-05,2]
[347416069,1735777832089,-150.0,9.888e-05,2]
[347416070,1735777832099,-150.0,9.888e-05,2]
[347416071,1735777832109,-150.0,9.888e-05,2]
[347416072,1735777832118,-300.0,9.9e-05,3]
[347416073,1735777832128,-150.99,0.0001,2]
[347416074,1735777832137,-299.99,0.0001,2]
[347416075,1735777832147,-6199.71,0.0001,2]
[347416076,1735777832157,-150.99,0.0001,2]
[347416077,1735777832167,-700.0,0.0001,3]
[347416078,1735777832177,-6975.44862894,0.0001,2]
[347416079,1735777832186,-1100.0,0.000101,3]
[347416080,1735777832195,-150.0,0.00010107,2]
[347416081,1735777832204,-151.27,0.00010137,2]
[347416082,1735777832214,-151.19,0.00010137,2]
[347416083,1735777832224,-300.0,0.00010178,2]
[347416084,1735777832233,-1500.0,0.000102,3]
[347416085,1735777832243,-150.0,0.00010254,2]
[347416086,1735777832258,-1900.0,0.000103,3]
[347416087,1735777832267,-150.0,0.00010327,2]
[347416088,1735777832276,-300.0,0.000104,3]
[347416089,1735777832286,-150.0,0.00010437,2]
[347416090,1735777832296,-5007.51205075,0.00010439,2]
[347416091,1735777832306,-5000.0,0.00010439,2]
[347416092,1735777832316,-5000.0,0.00010439,2]
[347416093,1735777832325,-5000.0,0.00010439,2]
[347416094,1735777832337,-5000.0,0.00010439,2]
[347416095,1735777832348,-505.097,0.0001045,2]
[347416096,1735777832358,-1087.77,0.00010452,2]
[347416097,1735777832368,-166.89,0.0001046,2]
[347416098,1735777832378,-150.81,0.00010466,2]
[347416099,1735777832387,-300.0,0.000105,3]
[347416100,1735777832397,-4623.0,0.00010526,2]
[347416101,1735777832406,-502.32,0.00010543,2]
[347416102,1735777832415,-150.0,0.00010547,2]
[347416103,1735777832425,-150.0,0.00010553,2]
[347416104,1735777832434,-150.0,0.00010553,2]
[347416105,1735777832443,-150.0,0.00010553,2]
[347416106,1735777832452,-150.0,0.00010553,2]
[347416107,1735777832461,-150.0,0.00010553,2]
[347416108,1735777832471,-150.0,0.00010553,2]
[347416109,1735777832480,-150.0,0.00010553,2]
[347416110,1735777832489,-150.0,0.00010553,2]
[347416111,1735777832502,-504.0,0.0001057,2]
[347416112,1735777832511,-500.37,0.0001059,2]
[347416113,1735777832521,-496.04,0.0001059,2]
[347416114,1735777832531,-300.0,0.000106,3]
[347416115,1735777832540,-200.0,0.00010605,2]
[347416116,1735777832550,-150.0,0.0001062,2]
[347416117,1735777832559,-300.0,0.000107,3]
[347416118,1735777832568,-1517.43,0.00010719,2]
[347416119,1735777832577,-1267.9896,0.00010758,2]
[347416120,1735777832586,-18669.0101,0.00010758,2]
[347416121,1735777832595,-150.0,0.00010767,2]
[347416122,1735777832605,-1486.2106,0.0001079,2]
[347416123,1735777832614,-6796.0049,0.000108,2]
[347416124,1735777832624,-1000.0,0.000108,3]
[347416125,1735777832633,-1000.0,0.00010839,2]
[347416126,1735777832642,-485.4287,0.00010858,2]
[347416127,1735777832652,-507.32,0.00010858,2]
[347416128,1735777832661,-6757.7417,0.00010858,2]
[347416129,1735777832671,-260.6253,0.00010858,2]
[347416130,1735777832680,-842.8275,0.00010858,2]
[347416131,1735777832689,-5830.7014,0.00010858,2]
[347416132,1735777832698,-5000.0,0.00010858,2]
[347416133,1735777832707,-9598.3031,0.00010858,2]
[347416134,1735777832717,-2500.0,0.00010858,2]
[347416135,1735777832726,-4569.9341,0.0001087,2]
[347416136,1735777832736,-3000.0,0.0001087,2]
[347416137,1735777832745,-1500.0,0.0001089,2]
[347416138,1735777832757,-37078.4992,0.0001089,2]
[347416139,1735777832767,-10267.82994,0.000109,2]
[347416140,1735777832776,-288.50146014,0.000109,2]
[347416141,1735777832785,-172.43318076,0.000109,2]
[347416142,1735777832794,-172.43318076,0.000109,2]
[347416143,1735777832803,-537.97441846,0.000109,2]
[347416144,1735777832812,-499.32,0.00010902,2]
[347416145,1735777832821,-171.227,0.00010942,2]
[347416146,1735777832830,-2453.362,0.00010942,2]
[347416147,1735777832839,-991.163727,0.00010958,2]
[347416148,1735777832848,-700.264821,0.00010958,2]
[347416149,1735777832859,-500.0,0.00010958,2]
[347416150,1735777832868,-500.0,0.00010958,2]
[347416151,1735777832877,-659.28,0.00010958,2]
[347416152,1735777832886,-500.0,0.00010958,2]
[347416153,1735777832895,-500.0,0.00010958,2]
[347416154,1735777832904,-630.46803487,0.00010958,2]
[347416155,1735777832914,-521.96,0.00010958,2]
[347416156,1735777832923,-364.18988367,0.00010958,2]
[347416157,1735777832932,-500.0,0.00010958,2]
[347416158,1735777832942,-500.0,0.00010958,2]
[347416159,1735777832951,-500.0,0.00010958,2]
[347416160,1735777832960,-500.0,0.00010958,2]
[347416161,1735777832969,-500.0,0.00010958,2]
[347416162,1735777832978,-983.39,0.00010958,2]
[347416163,1735777832988,-500.0,0.00010958,2]
[347416164,1735777832997,-369.06437478,0.00010958,2]
[347416165,1735777833007,-669.89,0.00010958,2]
[347416166,1735777833016,-516.86,0.00010958,2]
[347416167,1735777833026,-874.93,0.00010958,2]
[347416168,1735777833035,-500.0,0.00010958,2]
[347416169,1735777833045,-500.0,0.00010958,2]
[347416170,1735777833054,-214.56741575,0.00010958,2]
[347416171,1735777833063,-601.92,0.00010958,2]
[347416172,1735777833073,-500.0,0.00010958,2]
[347416173,1735777833083,-500.0,0.00010958,2]
[347416174,1735777833092,-1123.99,0.00010958,2]
[347416175,1735777833102,-500.0,0.00010958,2]
[347416176,1735777833112,-500.0,0.00010958,2]
[347416177,1735777833122,-500.0,0.00010958,2]
[347416178,1735777833131,-279.40582869,0.00010958,2]
[347416179,1735777833140,-500.0,0.00010958,2]
[347416180,1735777833150,-500.0,0.00010958,2]
[347416181,1735777833159,-500.0,0.00010958,2]
[347416182,1735777833169,-500.0,0.00010958,2]
[347416183,1735777833179,-500.0,0.00010958,2]
[347416184,1735777833188,-500.0,0.00010958,2]
[347416185,1735777833197,-742.62,0.00010958,2]
[347416186,1735777833207,-500.0,0.00010958,2]
[347416187,1735777833217,-500.0,0.00010958,2]
[347416188,1735777833227,-500.0,0.00010958,2]
[347416189,1735777833237,-500.0,0.00010958,2]
[347416190,1735777833247,-255.83370233,0.00010958,2]
[347416191,1735777833261,-500.0,0.00010958,2]
[347416192,1735777833271,-500.0,0.00010958,2]
[347416193,1735777833281,-500.0,0.00010958,2]
[347416194,1735777833290,-500.0,0.00010958,2]
[347416195,1735777833300,-500.0,0.00010958,2]
[347416196,1735777833310,-500.0,0.00010958,2]
[347416197,1735777833320,-500.0,0.00010958,2]
[347416198,1735777833330,-500.0,0.00010958,2]
[347416199,1735777833340,-500.0,0.00010958,2]
[347416200,1735777833349,-500.0,0.00010958,2]
[347416201,1735777833359,-185.11758143,0.00010958,2]
[347416202,1735777833369,-500.0,0.00010958,2]
[347416203,1735777833379,-500.0,0.00010958,2]
[347416204,1735777833389,-1305.08,0.00010958,2]
[347416205,1735777833398,-500.0,0.00010958,2]
[347416206,1735777833407,-500.0,0.00010958,2]
[347416207,1735777833418,-242.14448323,0.00010958,2]
[347416208,1735777833427,-500.0,0.00010958,2]
[347416209,1735777833437,-589.81,0.00010958,2]
[347416210,1735777833447,-500.0,0.00010958,2]
[347416211,1735777833457,-500.0,0.00010958,2]
[347416212,1735777833467,-500.0,0.00010958,2]
[347416213,1735777833478,-157.61106955,0.00010958,2]
[347416214,1735777833488,-500.0,0.00010958,2]
[347416215,1735777833501,-500.0,0.00010958,2]
[347416216,1735777833511,-632.38,0.00010958,2]
[347416217,1735777833522,-841.72,0.00010958,2]
[347416218,1735777833532,-500.0,0.00010958,2]
[347416219,1735777833542,-508.0,0.00010958,2]
[347416220,1735777833552,-500.0,0.00010958,2]
[347416221,1735777833562,-893.8,0.00010958,2]
[347416222,1735777833572,-500.0,0.00010958,2]
[347416223,1735777833583,-500.0,0.00010958,2]
[347416224,1735777833593,-431.15598709,0.00010958,2]
[347416225,1735777833603,-500.0,0.00010958,2]
[347416226,1735777833613,-1056.03,0.00010958,2]
[347416227,1735777833625,-500.0,0.00010958,2]
[347416228,1735777833636,-500.0,0.00010958,2]
[347416229,1735777833645,-500.0,0.00010958,2]
[347416230,1735777833655,-503.9,0.00010958,2]
[347416231,1735777833665,-500.0,0.00010958,2]
[347416232,1735777833675,-606.86,0.00010958,2]
[347416233,1735777833685,-500.0,0.00010958,2]
[347416234,1735777833695,-753.44,0.00010958,2]
[347416235,1735777833705,-500.0,0.00010958,2]
[347416236,1735777833715,-500.0,0.00010958,2]
[347416237,1735777833725,-500.0,0.00010958,2]
[347416238,1735777833734,-500.0,0.00010958,2]
[347416239,1735777833744,-773.84,0.00010958,2]
[347416240,1735777833757,-500.0,0.00010958,2]
[347416241,1735777833766,-500.0,0.00010958,2]
[347416242,1735777833776,-701.12,0.00010958,2]
[347416243,1735777833787,-500.0,0.00010958,2]
[347416244,1735777833797,-500.0,0.00010958,2]
[347416245,1735777833806,-500.0,0.00010958,2]
[347416246,1735777833816,-529.53,0.00010958,2]
[347416247,1735777833826,-500.0,0.00010958,2]
[347416248,1735777833835,-500.0,0.00010958,2]
[347416249,1735777833845,-500.0,0.00010958,2]
[347416250,1735777833855,-500.0,0.00010958,2]